Cogmind - Beta 17 @@@ ROGUE MODE // 2026.06.26 @ 05:16:48 Player: HybriD Result: Destroyed by G-50 Soldier with Heavy Laser Performance ------------- Evolutions (4) 2000 Regions Visited (8) 1600 Robots Destroyed (72) 360 Value Destroyed (2851) 2851 Prototype IDs (11) 220 Alien Tech Used (0) 0 Bonus (165) 165 TOTAL SCORE: 7196 Bonus ------- Follower Combat Kills 208 Friendly Fire -43 Cogmind --------- Core Integrity 0/850 Matter 107/300 Energy 98/100 System Corruption 1% Temperature Cool (9) Movement Core (50) Location -6/Factory Parts ------- > --- POWER (2) -------- (None) > --- PROPULSION (4) --- (None) > --- UTILITY (6) ------ Advanced Visual Processing Unit Targeting Computer Core Analyzer > --- WEAPON (3) ------- (None) > --- INVENTORY (5) ---- Improved Deuterium Engine Gauss Rifle Heavy Machine Gun Magnetic Acceleration Cannon Peak State ------------ > --- POWER ------------ Micro Nuclear Core Light Fission Core > --- PROPULSION ------- Gravmag Array > --- UTILITY ---------- Improved Cooling System Weight Redist. System Advanced Visual Processing Unit Targeting Computer Core Analyzer Focal Shield > --- WEAPON ----------- Force Rifle Phase Cannon > --- INVENTORY -------- Improved Deuterium Engine Trap Scanner Gauss Rifle Heavy Machine Gun Magnetic Acceleration Cannon [Rating: 51] Favorites ----------- Power Cooled Ion Engine Engine Cooled Ion Engine Power Core Micro Nuclear Core Propulsion VTOL Module Leg Titanium Leg Wheel Compact Wheel Hover Unit Gravmag System Flight Unit VTOL Module Utility Small Storage Unit Device Improved Heat Sink Storage Small Storage Unit Processor Targeting Computer Protection Improved Medium Armor Plating Weapon Beam Rifle Energy Gun Beam Rifle Energy Cannon Phase Cannon Ballistic Gun Assault Rifle Ballistic Cannon Flak Cannon Launcher Improved Grenade Launcher Build | -11 -10 -10 -9 -9 -8 -8 -7 -6 ------- Run | Yrd Mat Min Mat Min Mat Sto Fac Fac Slots Evolved 8 | . . . 2 . 2 . 2 2 Power 1 | . . . . . 1 . . . Propulsion 2 | . . . 1 . 1 . . . Utility 4 | . . . 1 . . . 2 1 Weapon 1 | . . . . . . . . 1 Parts Attached 94 | 6 1 5 7 1 5 9 49 11 Power 14 | 1 . 1 1 . 1 2 6 2 Engine 8 | 1 . 1 1 . 1 1 3 . Core 6 | . . . . . . 1 3 2 Reactor . | . . . . . . . . . Propulsion 30 | 2 . 2 3 . 3 2 15 3 Treads . | . . . . . . . . . Leg 7 | . . . . . . . 7 . Wheel 2 | 2 . . . . . . . . Hover 5 | . . . . . . . 2 3 Flight 16 | . . 2 3 . 3 2 6 . Utility 23 | 1 . 1 1 . . 1 17 2 Device 14 | . . 1 1 . . 1 9 2 Storage 3 | 1 . . . . . . 2 . Processor 4 | . . . . . . . 4 . Hackware . | . . . . . . . . . Protection 2 | . . . . . . . 2 . Artifact . | . . . . . . . . . Weapon 27 | 2 1 1 2 1 1 4 11 4 Energy Gun 8 | . 1 . 1 . 1 1 3 1 Energy Cannon 1 | . . . . . . . . 1 Ballistic Gun 12 | 2 . 1 1 . . 3 4 1 Ballistic Cannon 5 | . . . . . . . 4 1 Launcher 1 | . . . . 1 . . . . Special Weapon . | . . . . . . . . . Impact Weapon . | . . . . . . . . . Slashing Weapon . | . . . . . . . . . Piercing Weapon . | . . . . . . . . . Special Melee Weapon . | . . . . . . . . . Unidentified Prototypes 7 | . . . 1 . . . 5 1 Parts Lost 58 | . . 3 . . 3 9 33 10 Power 11 | . . 1 . . . 2 6 2 Propulsion 22 | . . 2 . . 2 4 11 3 Utility 17 | . . . . . . 1 12 4 Weapon 8 | . . . . . 1 2 4 1 Highest Loss Streak 10 | . . 2 . . 2 5 7 10 To Critical Strikes 1 | . . . . . . 1 . . Average Backups 6 | 1 3 6 6 7 7 7 6 4 Power 1 | 1 1 . 1 2 2 1 1 . Propulsion . | . . 1 . 1 . . 1 . Utility 1 | . . . . 2 2 2 . . Weapon 3 | . 2 4 2 2 2 3 3 2 Tool/Special . | . . . . . . . . . Unused Backups 11 | . . . 1 . 1 3 4 2 Power . | . . . . . . . . . Propulsion 2 | . . . . . 1 . 1 . Utility 2 | . . . . . . 1 . 1 Weapon 7 | . . . 1 . . 2 3 1 Tool/Special . | . . . . . . . . . Average Slot Usage (%) 80 | . 85 84 97 100 83 87 78 48 Engine 7 | . 14 14 11 11 10 10 5 . Core 2 | . . . . . . 3 3 4 Leg 6 | . . . . . . . 12 . Wheel 1 | . 28 7 1 . 2 . . . Flight 13 | . . 20 30 33 25 30 5 . Device 15 | . . . 20 22 18 16 17 15 Storage 7 | . 14 14 11 11 9 9 5 . Processor 5 | . . . . . . . 8 20 Protection 1 | . . . . . . . 2 . Energy Gun 6 | . 12 14 11 11 9 8 3 . Ballistic Gun 7 | . 16 14 11 11 9 8 6 . Ballistic Cannon 2 | . . . . . . . 4 . Peak Build Rating 51 | 6 7 11 18 19 18 22 38 51 Average Rating 22 | 3 6 7 16 18 16 18 27 30 On Entrance 10 | . 6 7 11 18 18 18 11 9 Avg Prop Armor Cover (%) 3 | . . . 6 . 5 . 2 . Naked Turns . | . . . . . . . . . Heaviest Build 49 | 11 13 15 20 23 23 27 49 24 Greatest Support 63 | 26 26 26 26 12 16 18 63 38 Greatest Overweight (x) 3 | . . 1 3 1 1 2 3 1 Average Overweight (x) . | . . . . 1 1 . . . Largest Inventory Capacity 15 | 8 8 8 8 8 8 8 15 5 Average Capacity 8 | 6 8 8 8 8 8 8 9 5 Most Carried 11 | 5 5 8 8 8 8 8 11 5 Average Carried 6 | 2 4 7 7 7 7 7 6 4 Final Capacity 8 | 8 8 8 8 8 8 8 5 5 Final Carried 8 | 2 5 7 8 8 7 8 5 4 Class Distribution -------------------- 64% | Mutant 32% | Scavenger-Mutant Dominant Class ---------------- Mutant | -10/Materials Mutant | -10/Mines Mutant | -9/Materials Mutant | -9/Mines Mutant | -8/Materials Scavenger-Mutant | -8/Storage Mutant | -7/Factory Mutant | -6/Factory Resources | -11 -10 -10 -9 -9 -8 -8 -7 -6 ----------- Run | Yrd Mat Min Mat Min Mat Sto Fac Fac Matter Collected 2165 | 248 . 123 122 39 125 233 1181 94 Remotely 16 | . . . . . . . 16 . Salvage Created 2855 | . . 229 141 98 235 673 1433 46 Parts 135 | . . 14 7 5 10 33 64 2 Haulers Intercepted 1 | . . . . . . 1 . . Recyclers Shooed 3 | . . . 1 . 2 . . . Parts Field Recycled . | . . . . . . . . . Retrieved Matter . | . . . . . . . . . Parts Self-Destructed . | . . . . . . . . . Prevented . | . . . . . . . . . Parts Restored . | . . . . . . . . . Kills | -11 -10 -10 -9 -9 -8 -8 -7 -6 ------- Run | Yrd Mat Min Mat Min Mat Sto Fac Fac Combat Hostiles Destroyed 62 | . . 9 1 3 4 12 32 1 Guns 47 | . . 9 1 1 2 12 22 . Cannons 10 | . . . . . . . 9 1 AOE 4 | . . . . 2 1 . 1 . Classes Destroyed 11 | . . 2 2 1 2 1 3 . Worker 2 | . . . . . . . 2 . Hauler 1 | . . . . . . 1 . . Recycler 5 | . . . 1 . 1 . 3 . Watcher 2 | . . . . . 1 1 . . Swarmer 14 | . . 5 . . 2 . 7 . Grunt 24 | . . 4 . 2 1 5 12 . Brawler 2 | . . . . 1 . . 1 . Sentry 13 | . . . 1 . . 7 5 . Hunter 4 | . . . . . 1 . 3 . Programmer 4 | . . . . . . . 3 1 Heavy 1 | . . . . . . . 1 . Best Kill Streak 6 | . . 3 1 3 3 3 6 1 Combat Bots Only 5 | . . 3 1 3 2 2 5 1 Max Kills in Single Turn 2 | . . 1 1 2 2 2 2 1 Gunslinging . | . . . . . . . . . Exploded 2 | . . . . 2 1 . 1 . Melee . | . . . . . . . . . Uniques/NPCs Destroyed . | . . . . . . . . . Combat | -11 -10 -10 -9 -9 -8 -8 -7 -6 -------- Run | Yrd Mat Min Mat Min Mat Sto Fac Fac Hostile Shots Fired 807 | . 5 44 14 4 24 85 379 252 Missed 291 | . 1 10 2 1 10 23 128 116 Hits 516 | . 4 34 12 3 14 62 251 136 Melee 3 | . . . . . . . 2 1 Projectile 513 | . 4 34 12 3 14 62 249 135 Critical Strikes 14 | . 1 . . . . 2 9 2 Part Disruptions 4 | . . . . . . . 3 1 Damage Taken 6976 | . 53 349 163 32 183 971 3662 1563 Core 1993 | . 10 68 74 . 27 269 689 856 Absorbed by Shields . | . . . . . . . . . Ignored by Resistances 261 | . . . . . . . . 261 Core Remaining (%) 59 | 100 . 68 . 81 . 46 1 . Volleys Fired 243 | . . 22 14 2 19 50 132 4 Largest 2 | . . 2 2 2 2 2 2 1 Hottest 117 | . . 76 76 56 76 88 117 85 Shots Fired 462 | . . 44 28 3 38 97 248 4 Gun 396 | . . 44 28 2 37 94 191 . Cannon 61 | . . . . . . . 57 4 Launcher 5 | . . . . 1 1 3 . . Special . | . . . . . . . . . Kinetic 304 | . . 22 14 2 19 47 200 . Thermal 153 | . . 22 14 . 18 47 48 4 Explosive 5 | . . . . 1 1 3 . . Electromagnetic . | . . . . . . . . . Robot Hit Streak 16 | . . 6 5 5 10 11 16 5 Robot Miss Streak 6 | . . 3 2 . 1 2 6 1 Penetration Max . | . . . . . . . . . Secondary Targets 5 | . . 2 . . . 2 1 . Max Gunslinging Chain 1 | . . 1 . . . 1 1 . Shots Hit Robots 321 | . . 24 19 3 28 73 171 3 Core Hits 167 | . . 11 5 5 8 34 102 2 Critical Kills . | . . . . . . . . . Critical Parts Destroyed 1 | . . . . . . . 1 . Critical Strikes 16 | . . 1 . . 1 10 4 . Burn 15 | . . 1 . . 1 10 3 . Destroy 1 | . . . . . . . 1 . Melee Attacks . | . . . . . . . . . Impact . | . . . . . . . . . Slashing . | . . . . . . . . . Piercing . | . . . . . . . . . Sneak Attacks . | . . . . . . . . . Combat Hostiles . | . . . . . . . . . Follow-up Attacks . | . . . . . . . . . Damage Inflicted 6236 | . . 299 305 156 477 1341 3514 144 Guns 4136 | . . 298 305 24 363 1049 2097 . Cannons 1140 | . . . . . . . 999 141 Explosions 956 | . . . . 132 114 292 418 . Melee . | . . . . . . . . . Ramming 4 | . . 1 . . . . . 3 Kinetic 3458 | . . 136 189 24 175 447 2487 . Thermal 1818 | . . 162 116 . 188 602 609 141 Explosive 812 | . . . . 132 114 292 274 . Electromagnetic 144 | . . . . . . . 144 . Impact . | . . . . . . . . . Slashing . | . . . . . . . . . Piercing . | . . . . . . . . . Highest Corruption 3 | . . . . . . . 3 1 Average Corruption 2 | . . . . . . . 2 1 Corruption Purged . | . . . . . . . . . Corruption Blocked . | . . . . . . . . . Effects 23 | . . . . . . . 23 . Message Errors 2 | . . . . . . . 2 . Matter Fused 2 | . . . . . . . 2 . Heat Flow Errors 5 | . . . . . . . 5 . Energy Discharges 6 | . . . . . . . 6 . Parts Rejected 1 | . . . . . . . 1 . Data Loss (minor) 1 | . . . . . . . 1 . Data Loss (major) 3 | . . . . . . . 3 . Alerts 1 | . . . . . . . 1 . Weapon Failures 2 | . . . . . . . 2 . Overload Shots . | . . . . . . . . . Overflow Damage 76 | . . . . . . 12 64 . Projectiles 7 | . . . . . . . 7 . Explosions 69 | . . . . . . 12 57 . Melee . | . . . . . . . . . Knockbacks 13 | . . . . . . . 13 . Impact . | . . . . . . . . . Kinetic 12 | . . . . . . . 12 . Secondary 1 | . . . . . . . 1 . Self-Inflicted Damage 128 | . . . . . . . 127 1 Shots 4 | . . . . . . . 4 . Rammed 2 | . . 1 . . . . . 1 Targets Rammed 2 | . . 1 . . . . . 1 Kicked . | . . . . . . . . . Crushed . | . . . . . . . . . Highest Temperature 403 | . 7 234 4 . . 22 403 72 Average Temperature 59 | . 7 68 4 . . 8 74 38 Received Heat Transfer 1713 | . 48 102 87 18 18 414 852 174 Siege Activations . | . . . . . . . . . Martial Activations . | . . . . . . . . . Shielding Activations . | . . . . . . . . . Robots Disrupted . | . . . . . . . . . Combat Hostiles . | . . . . . . . . . Robots Corrupted . | . . . . . . . . . Combat Hostiles . | . . . . . . . . . Parts Fried . | . . . . . . . . . Impact Corruptions . | . . . . . . . . . Robots Melted 1 | . . . . . 1 . . . Combat Hostiles 1 | . . . . . 1 . . . Parts Melted 15 | . . 2 1 . 1 10 . 1 Heat Transferred 5349 | . . 481 296 . 555 2183 1686 148 Parts Sabotaged . | . . . . . . . . . Parts Stolen . | . . . . . . . . . Parts Stripped . | . . . . . . . . . Power Chain Reactions . | . . . . . . . . . Alert | -11 -10 -10 -9 -9 -8 -8 -7 -6 ------- Run | Yrd Mat Min Mat Min Mat Sto Fac Fac Maximum Alert Level 1 | . . . . . 1 1 1 1 Low Security (%) 81 | 100 100 100 100 100 41 39 90 60 Level 1 18 | . . . . . 58 60 9 39 Level 2 . | . . . . . . . . . Level 3 . | . . . . . . . . . Level 4 . | . . . . . . . . . Level 5 . | . . . . . . . . . High Security . | . . . . . . . . . Max Security . | . . . . . . . . . Peak Influence 378 | . 5 85 96 104 324 378 377 301 Initial 171 | . . . 17 31 13 126 163 171 Average 124 | . . 41 26 58 191 195 126 200 Influence Increases 3145 | . 5 283 150 93 429 617 1253 315 Destroy 0b10 Robot/C 1440 | . . 220 80 60 180 240 640 20 Destroy 0b10 Robot/NC 50 | . . . 5 . 10 10 25 . Destroy Leader 356 | . . 30 20 10 42 94 150 10 Allied During Kill 43 | . . 8 6 11 18 . . . Trap Triggered on 0b10 10 | . . 10 . . . . . . Successful Hack 63 | . 5 . 9 . . 28 21 . Disable Machine 315 | . . . 15 . . 60 240 . Destroy Structure 118 | . . . . 12 14 50 42 . Partial Spotted 60 | . . . 15 . 15 15 . 15 Lose Combat Pursuer 690 | . . 15 . . 150 120 135 270 Influence Decreases 2899 | . 5 237 115 140 164 557 1261 420 Entered New Map 649 | . . . 29 50 21 173 196 180 Time Decay 1481 | . 5 207 86 90 113 294 546 140 Lost Part 510 | . . 30 . . 10 90 280 100 Lost Ally 20 | . . . . . 20 . . . Purge Threat 239 | . . . . . . . 239 . Squads Dispatched 19 | . . 1 . . 1 3 11 3 Investigation 3 | . . . . . . 1 1 1 Extermination 3 | . . . . . . . 3 . Reinforcement 7 | . . . . . 1 . 4 2 Assault 1 | . . 1 . . . . . . Garrison 5 | . . . . . . 2 3 . Intercept . | . . . . . . . . . Searches Triggered . | . . . . . . . . . Construction Impeded . | . . . . . . . . . Haulers Reinforced . | . . . . . . . . . Active Scanning Responses . | . . . . . . . . . Cargo Convoy Interrupts 1 | . . . . . . . 1 . Stealth | -11 -10 -10 -9 -9 -8 -8 -7 -6 --------- Run | Yrd Mat Min Mat Min Mat Sto Fac Fac Distress Signals 10 | . . . 1 . 4 . 3 2 Communications Jammed . | . . . . . . . . . Distress Signals . | . . . . . . . . . Times Spotted 163 | . 4 14 6 3 20 29 58 29 Peak Tracking Total 14 | . 4 4 5 3 9 6 8 14 Tactical Retreats 21 | . . 1 . . 4 5 5 6 Traps | -11 -10 -10 -9 -9 -8 -8 -7 -6 ------- Run | Yrd Mat Min Mat Min Mat Sto Fac Fac Traps Triggered 9 | . . . . . . 2 5 2 Indirectly . | . . . . . . . . . Trap Hack Attempts . | . . . . . . . . . Triggered . | . . . . . . . . . Disarmed . | . . . . . . . . . Reprogrammed . | . . . . . . . . . Reused 1 | . . 1 . . . . . . Traps Extracted . | . . . . . . . . . Installed 2 | . . 2 . . . . . . Triggered 1 | . . 1 . . . . . . Most Traps Carried 3 | . . 3 1 1 . . . . Machines | -11 -10 -10 -9 -9 -8 -8 -7 -6 ---------- Run | Yrd Mat Min Mat Min Mat Sto Fac Fac Machines Disabled 21 | . . . 1 . . 4 16 . Max in Single Turn 4 | . . . . . . 2 4 . Machines Repaired . | . . . . . . . . . Machines Dismantled . | . . . . . . . . . Machines Sabotaged . | . . . . . . . . . Overloaded Fab Kills . | . . . . . . . . . Hacking | -11 -10 -10 -9 -9 -8 -8 -7 -6 --------- Run | Yrd Mat Min Mat Min Mat Sto Fac Fac Machines Accessed 31 | . 1 . 1 . . 8 19 2 Terminals 19 | . 1 . 1 . . 6 10 1 Fabricators 2 | . . . . . . . 2 . Repair Stations 2 | . . . . . . . 2 . Recycling Units 3 | . . . . . . 2 1 . Scanalyzers 3 | . . . . . . . 2 1 Garrison Access 2 | . . . . . . . 2 . Total Hacks 70 | . 2 . 3 . . 16 39 10 Successful 35 | . 2 . 2 . . 8 16 7 Failed 34 | . . . 1 . . 8 22 3 Catastrophic 8 | . . . . . . 2 5 1 Database Lockouts 1 | . . . . . . . 1 . Manual 10 | . 1 . 2 . . 4 3 . Terminals 39 | . 2 . 3 . . 12 20 2 Fabricators 5 | . . . . . . . 5 . Repair Stations 5 | . . . . . . . 5 . Recycling Units 5 | . . . . . . 4 1 . Scanalyzers 14 | . . . . . . . 6 8 Garrison Access 2 | . . . . . . . 2 . Terminal Hacks 19 | . 2 . 2 . . 6 8 1 Part Schematic 1 | . . . . . . . 1 . Prototype ID Bank 1 | . . . . . . 1 . . Open Door 1 | . . . . . . 1 . . Open DSF 1 | . . . . . . . 1 . Emergency Access Points 1 | . . . . . . . 1 . Alert Level 5 | . . . . . . 2 2 1 Unreport Threat 2 | . . . . . . . 2 . Locate Traps 2 | . 1 . 1 . . . . . Dispatch Records 1 | . . . . . . . 1 . Hauler Manifests 1 | . . . . . . 1 . . Zone Layout 3 | . 1 . 1 . . 1 . . Fabricator Hacks 2 | . . . . . . . 2 . Network Status 1 | . . . . . . . 1 . Build 1 | . . . . . . . 1 . Repair Station Hacks 1 | . . . . . . . 1 . Scan Component 1 | . . . . . . . 1 . Recycling Unit Hacks 3 | . . . . . . 2 1 . Retrieve Components 3 | . . . . . . 2 1 . Scanalyzer 10 | . . . . . . . 4 6 Insert Component 1 | . . . . . . . . 1 Analyze 1 | . . . . . . . . 1 Retrieve Study 8 | . . . . . . . 4 4 Garrison Access Hacks . | . . . . . . . . . Unauthorized Hacks . | . . . . . . . . . Terminals . | . . . . . . . . . Fabricators . | . . . . . . . . . Repair Stations . | . . . . . . . . . Recycling Units . | . . . . . . . . . Scanalyzers . | . . . . . . . . . Garrison Access . | . . . . . . . . . Data Cores Recovered . | . . . . . . . . . Used . | . . . . . . . . . Hacking Detections 24 | . 1 . 1 . . 6 15 1 Full Trace Events 1 | . . . . . . 1 . . Feedback Events . | . . . . . . . . . Feedback Blocked . | . . . . . . . . . Robot Schematics Acquired . | . . . . . . . . . Robots Built . | . . . . . . . . . Authchips . | . . . . . . . . . Time . | . . . . . . . . . Total Robot Build Rating . | . . . . . . . . . Part Schematics Acquired 2 | . . . . . . . 1 1 Parts Built 1 | . . . . . . . 1 . Authchips . | . . . . . . . . . Time 152 | . . . . . . . 152 . Total Part Build Rating 5 | . . . . . . . 5 . Part Studies Acquired 8 | . . . . . . . 4 4 Parts Repaired . | . . . . . . . . . Time . | . . . . . . . . . Parts Recycled . | . . . . . . . . . Recycled Matter . | . . . . . . . . . Retrieved Matter . | . . . . . . . . . Retrieved Components 13 | . . . . . . 10 3 . Parts Scanalyzed 1 | . . . . . . . . 1 Part Schematics Acquired 1 | . . . . . . . . 1 Parts Damaged . | . . . . . . . . . Bothacking | -11 -10 -10 -9 -9 -8 -8 -7 -6 ------------ Run | Yrd Mat Min Mat Min Mat Sto Fac Fac Used RIF Installer . | . . . . . . . . . Robots Hacked . | . . . . . . . . . Non-combat . | . . . . . . . . . Combat . | . . . . . . . . . Robot Hacks Applied . | . . . . . . . . . Relay Couplers Released . | . . . . . . . . . Fabnet Peak Effective % . | . . . . . . . . . Robots Rewired . | . . . . . . . . . Allies Hacked . | . . . . . . . . . Hacks Repelled . | . . . . . . . . . Allies | -11 -10 -10 -9 -9 -8 -8 -7 -6 -------- Run | Yrd Mat Min Mat Min Mat Sto Fac Fac Total Allies 2 | . . 1 . 1 . . . . Largest Group 2 | . . 1 1 2 2 . . . Highest-Rated Group 62 | . . 31 31 62 62 . . . Highest-Rated Ally 31 | . . 31 31 31 31 . . . Total Orders 3 | . . . . . . . 3 . EXPLORE 3 | . . . . . . . 3 . Ally Attacks 46 | . . 10 14 1 21 . . . Total Damage 668 | . . 186 190 22 270 . . . Kills 10 | . . 2 3 . 5 . . . Allies Corrupted . | . . . . . . . . . Allies Melted . | . . . . . . . . . Intel | -11 -10 -10 -9 -9 -8 -8 -7 -6 ------- Run | Yrd Mat Min Mat Min Mat Sto Fac Fac Active Infowar (turns) 2446 | . . . 265 192 267 525 906 291 Optics 1197 | . . . . . . . 906 291 Traps 566 | . . . . . . . 422 144 Seismic 1249 | . . . 265 192 267 525 . . Jamming 35 | . . . . . . . 35 . Robot Analysis Total . | . . . . . . . . . Derelict Logs Recovered . | . . . . . . . . . Drone Launches 3 | . . . . . . . 3 . Drone Recoveries 2 | . . . . . . . 2 . Exploration | -11 -10 -10 -9 -9 -8 -8 -7 -6 ------------- Run | Yrd Mat Min Mat Min Mat Sto Fac Fac Turns Passed 4777 | 41 62 461 293 192 267 654 2516 291 Spaces Moved 3082 | 32 63 301 176 158 158 476 1274 444 Core 251 | 4 . . . . . . 20 227 Treads . | . . . . . . . . . Legs 858 | . . . . . . . 858 . Wheels 194 | 28 63 70 8 . 25 . . . Hover 261 | . . . . . . . 44 217 Flight 1518 | . . 231 168 158 133 476 352 . Fastest Speed 31 | 50 90 90 90 109 109 31 50 50 Average Speed 109 | 85 90 110 111 109 110 87 138 55 Slowest Speed 280 | 100 90 117 280 109 115 180 255 120 Overloaded Moves . | . . . . . . . . . Propulsion Burnouts . | . . . . . . . . . Robots Hopped 5 | . . . . . . 5 . . Potential Cave-ins . | . . . . . . . . . Cave-ins Triggered . | . . . . . . . . . Exploration Rate (%) 29 | 3 21 48 15 39 14 58 49 22 Regions Visited 8 Branch Regions 3 Pre-discovered Areas . | . . . . . . . . . Known Exits Taken . | . . . . . . . . . Unknown Exits Taken 8 | 1 1 1 1 1 1 1 1 . Scrap Searched 1 | . . 1 . . . . . . Spaces Dug . | . . . . . . . . . Terrain Destroyed 128 | . . . . 12 16 63 37 . Melee . | . . . . . . . . . Projectile 2 | . . . . . . . 2 . AOE 126 | . . . . 12 16 63 35 . Terrain Rammed . | . . . . . . . . . Walls Destroyed . | . . . . . . . . . Machines Disabled . | . . . . . . . . . Actions | -11 -10 -10 -9 -9 -8 -8 -7 -6 --------- Run | Yrd Mat Min Mat Min Mat Sto Fac Fac Total 4023 | 45 68 386 246 174 211 615 1792 486 Wait 408 | . . 42 36 11 21 32 259 7 Move 3065 | 31 62 300 175 157 157 466 1273 444 Hop 4 | . . . . . . 4 . . Pick Up 93 | 8 4 9 6 1 4 10 44 7 Fast Attach 22 | . . . 3 . 2 . 12 5 Attach 70 | 6 . 4 3 . 4 4 39 10 Detach 12 | . . . 1 . . 1 6 4 Swap 30 | . 1 3 2 2 2 9 10 1 Drop 41 | . 1 3 6 1 2 9 16 3 Fire 243 | . . 22 14 2 19 50 132 4 Melee . | . . . . . . . . . Ram 2 | . . 1 . . . . . 1 Kick . | . . . . . . . . . Crush . | . . . . . . . . . Escape Stasis 30 | . . . . . . 30 . . Rewire 1 | . . . . . . . 1 . Trap 2 | . . 2 . . . . . . Miscellaneous . | . . . . . . . . . Route ------- -11/Scrapyard -10/Materials -10/Mines -9/Materials -9/Mines -8/Materials -8/Storage (discovered 2 exits: *Fac / [Rec]) -7/Factory -6/Factory History --------- Turn | Location | Event 14 | -11/Scrapyard | Discovered new exit (range 16) 42 | -11/Scrapyard | Entered Materials 93 | -10/Materials | Discovered new exit (range 15) 104 | -10/Materials | Entered Mines 142 | -10/Mines | Found a hidden stash of uninstalled traps 223 | -10/Mines | Met a Derelict bent on vengeance 294 | -10/Mines | Met a Derelict testing a Signal Generator 306 | -10/Mines | Build established: Mutant 524 | -10/Mines | Discovered new exit (range 6) 565 | -10/Mines | Entered Materials 565 | -9/Materials | Accompanied by 1 ally 565 | -9/Materials | Evolved 2 slots: Propulsion x1, Utility x1 683 | -9/Materials | Discovered new exit (range 7) 858 | -9/Materials | Entered Mines 858 | -9/Mines | Accompanied by 1 ally 861 | -9/Mines | Received a Mining Laser from a helpful Derelict 974 | -9/Mines | Discovered new exit (range 15) 1050 | -9/Mines | Entered Materials 1050 | -8/Materials | Accompanied by 2 allies 1050 | -8/Materials | Evolved 2 slots: Power x1, Propulsion x1 1071 | -8/Materials | Discovered new exit (range 11) 1317 | -8/Materials | Entered Storage 1460 | -8/Storage | Discovered new exit (range 13) 1558 | -8/Storage | Build established: Scavenger-Mutant 1775 | -8/Storage | Lost 3 parts (1p1n1w) 1784 | -8/Storage | Discovered new exit (range 15) 1843 | -8/Storage | Garrison activated, responded to threat 1901 | -8/Storage | Lost 5 parts (1p3n1u) 1942 | -8/Storage | Core integrity fell below 50% 1971 | -8/Storage | Entered Factory 1971 | -7/Factory | Evolved 2 slots: Utility x2 2421 | -7/Factory | Lost 4 parts (2n1u1w) 2689 | -7/Factory | Build established: Mutant 2849 | -7/Factory | Lost 3 parts (1n2u) 2998 | -7/Factory | Core integrity fell below 50% 3029 | -7/Factory | Fabricated Cold Fusion Reactor? 3141 | -7/Factory | Build established: Scavenger-Mutant 3235 | -7/Factory | Cargo convoy interrupted 3277 | -7/Factory | Garrison activated, responded to threat 3484 | -7/Factory | Lost 7 parts (2p3n1u1w) 3800 | -7/Factory | Central database locked down 4102 | -7/Factory | Build established: Mutant 4339 | -7/Factory | Discovered new exit (range 19) 4421 | -7/Factory | Core integrity fell below 20% 4456 | -7/Factory | Lost 3 parts (1p2u) 4487 | -7/Factory | Entered another Factory area 4487 | -6/Factory | Evolved 2 slots: Utility x1, Weapon x1 4705 | -6/Factory | Spotted B-75 Beast 4739 | -6/Factory | Core integrity fell below 50% 4765 | -6/Factory | Core integrity fell below 20% 4778 | -6/Factory | Destroyed by G-50 Soldier with Heavy Laser Last Messages --------------- 04645_ K-01 Serf collects debris. 04647_ K-01 Serf destroyed. 04648_ K-01 Serf collects debris. 04649_ Phase Cannon destroyed. 04652_ K-01 Serf destroyed. 04677_ Gravmag System destroyed. 04683_ S-27 Virus destroyed. 04693_ Connecting with DSF Access... 04697_ Mic. Nuclear Core+ destroyed. 04710_ Gravmag Array destroyed. 04727_ Imp. Cooling System destroyed. 04728_ Gravmag System destroyed. 04738_ Slammed into R-10 Processor. 04738_ Destabilizing: Core damaged (-34). 04738_ K-01 Serf cleans the Assembly Bed. 04740_ K-01 Serf cleans the Power Conduit. 04742_ K-01 Serf cleans the Assembly Bed. 04749_ K-01 Serf cleans the Recycling Unit. 04751_ Trap Scanner destroyed. 04759_ Focal Shield destroyed. Map ----- +----------------------------------------------------+ | ???????????????????????????????????????????? #### | | ???????????????????????????????????????????? | | ???????????????????????????????????????????# | | ???????????????????????????????????????????# | | ???????????????????????????????????????????# | | ???????????????????????????????????????????# | | ???????????????????????????? ?########### | | ???????????????????????????# ? ? | | ???????????????????????????# ? | | ???????????????????????????# ? | | ???????????????????????????+ / | | ???????????????????????????# | | ???????????????????????????# k """" """" """" """ | | ????????????????????######## """" """" """" """ | | ????????????????##### A """" """" """" """ | | ????????????????? g """" """" """" """ | | ????????????????? g """" """" """" | | ?????????????????? w """" """" """" | | ??????????????????"""" """" """" """" | | ????????????????? """" | | ????????????????? """" | | ??????? ? """" s | | ??????? """" ### | | ?????? """" #?? | | ?????? u #?? | | ?????? @ #?? | | ???????????????#######+#####################+###?? | | ?????????????????????????????????????????????????? | | ?????????????????????????????????????????????????? | | ?????????????????????????????????????????????????? | | ?????????????????????????????????????????????????? | | ?????????????????????????????????????????????????? | | ?????????????????????????????????????????????????? | | ?????????????????????????????????????????????????? | | ?????????????????????????????????????????????????? | | ?????????????????????????????????????????????????? | | ?????????????????????????????????????????????????? | | ?????????????????????????????????????????????????? | | ?????????????????????????????????????????????????? | | ?????????????????????????????????????????????????? | | ?????????????????????????????????????????????????? | | ?????????????????????????????????????????????????? | | ?????????????????????????????????????????????????? | | ?????????????????????????????????????????????????? | | ?????????????????????????????????????????????????? | | ?????????????????????????????????????????????????? | | ?????????????????????????????????????????????????? | | ?????????????????????????????????????????????????? | | ?????????????????????????????????????????????????? | | ?????????????????????????????????????????????????? | +----------------------------------------------------+ Best States ------------- Heat Dissipation 64 Energy Generation 29 Energy Capacity 350 Matter Stores 300 Matter Capacity 300 Sight Range 20 Terrain Scan Density 10 Jamming Range 12 Additional Mass Support 6 Base Temperature (-) 100 Armor Coverage 225 Resistance: KI 20 Evasion (%) 63 Targeting Accuracy 11 Core Analysis 6 Kinecelleration 30 Item Schematics ----------------- Fusion Compressor | -7/Factory | Hacked Focal Shield | -6/Factory | Scanalyzed Robot Schematics ------------------ None Fabricated ------------ Cold Fusion Reactor | x1 | -7/Factory | Preloaded Repaired ---------- Nothing Studied --------- Titanium Leg | -7/Factory | Hacked Carbon-fiber Leg | -7/Factory | Hacked Aluminum Leg | -7/Factory | Hacked Adv. Assault Cannon | -7/Factory | Hacked Imp. Deuterium Engine | -6/Factory | Hacked Mic. Nuclear Core | -6/Factory | Hacked Magnetic Acceleration Cannon | -6/Factory | Hacked Flak Cannon | -6/Factory | Hacked Alien Tech Used ----------------- None Achievements -------------- Deductive Reasoning Heavy Suspicion Jackpot Challenges ------------ None Game ------ Seed SmallRefineryBattery Manual? 0 Play Time 01:23:26 Cumulative 123.3 hours Start 2026.06.26 @ 03:52:38 End 2026.06.26 @ 05:16:48 Sessions 1 Manual Loads 0 Difficulty Rogue Special Mode None Game No. 124 Rogue 124 Adventurer 0 Explorer 0 Win Type - Total 1 Types 0/0/1/0/0/0/0/0/0/0 Lore% 28 Gallery% 47 Achievement% 22 Wizard Run 0 Options --------- Layout 1 ASCII 0 Keyboard 0 Movement Mouse Keybinds 0 Fullscreen 1 Font 24/Smallcaps Map View 50x35 Zoom Use 0% Tactical HUD 1 Map Filters NONE Filters NONE Steam 1 RUN: 80f325aa-49ad-45e2-86cc-e59dd432a31f